{"text_format":"1","workbook":"xlsx","n_sheets":3,"sheets":["Лист1","Лист2","Лист3"],"not_rendered":{"charts":0,"images":0,"macros":1,"external_links":0,"defined_names":0,"comments":1,"pivot_tables":0},"unopened":[],"bounds":{"document_bytes":16777216,"sheet_cells":100000,"rows_first":2000,"rows_last":500,"rows_between":2000,"halvings":0,"cell_chars":16384,"cell_head_chars":4096},"cells_cut":0,"cells_raw":0,"read":"whole","date_system":"1900"}

{"sheet":"Лист1","index":0,"n_rows":908,"n_cols":12,"rows_kept":908,"cut":false,"hidden":false,"merged":[]}
[]
[]
[]
[]
[]
[null,null,null,null,null,null,null,null,null,"Тут дополнительный текст который попадает в конец второго заголовка через пробел"]
[null,null,null,null,null,null,null,null,null,"Freedom Недвижимость"]
[]
[]
[]
[]
[null,null,null,null,null,"Сюда я вставляю ключевую фразу",null,"Тут первый заголовок 35 символов. Если не влезает слово уходит во второй",null,"Тут второй заголовок 30 символов Если не влезает режется по словам","Тут я забираю чистый текст  без формул заголовок 1","Тут я забираю чистый текст  без формул заголовок 2"]
[null,null,null,null,null,"купить огромный замок за границей дешего сейчас",{"$f":"LEN(H13)","v":34},{"$f":"UPPER(LEFT(F13))&MID(F13,2,MAX((MID(F13,ROW($1:$35),1)=\" \")*ROW($1:$35))-1)","v":"Купить огромный замок за границей "},{"$f":"LEN(J13)","v":30},{"$f":"LEFTB(CONCATENATE(REPLACE(F13,1,LEN(H13)-0,),\" \",J$7),30)","v":"дешего сейчас Freedom Недвижим"},{"$f":"H13","v":"Купить огромный замок за границей "},{"$f":"J13","v":"дешего сейчас Freedom Недвижим"}]
[null,null,null,null,null,"купить огромный дом за границей дешего",32,{"$f":"UPPER(LEFT(F14))&MID(F14,2,MAX((MID(F14,ROW($1:$35),1)=\" \")*ROW($1:$35))-1)","v":"Купить огромный дом за границей "},{"$f":"LEN(J14)","v":27},{"$f":"LEFTB(CONCATENATE(REPLACE(F14,1,LEN(H14)-0,),\" \",J$7),30)","v":"дешего Freedom Недвижимость"},{"$f":"H14","v":"Купить огромный дом за границей "},{"$f":"J14","v":"дешего Freedom Недвижимость"}]
[null,null,null,null,null,"купить огромный замок за границей дешего сейчас",34,{"$f":"UPPER(LEFT(F15))&MID(F15,2,MAX((MID(F15,ROW($1:$35),1)=\" \")*ROW($1:$35))-1)","v":"Купить огромный замок за границей "},30,"дешего сейчас Freedom Недвижим","Купить огромный замок за границей ","дешего сейчас Freedom Недвижим"]
[null,null,null,null,null,"купить фигню с доставкой на дом дорого",32,{"$f":"UPPER(LEFT(F16))&MID(F16,2,MAX((MID(F16,ROW($1:$35),1)=\" \")*ROW($1:$35))-1)","v":"Купить фигню с доставкой на дом "},27,"дорого Freedom Недвижимость","Купить фигню с доставкой на дом ","дорого Freedom Недвижимость"]
[null,null,null,null,null,null,{"$error":"#VALUE!"},{"$f":"UPPER(LEFT(F17))&MID(F17,2,MAX((MID(F17,ROW($1:$35),1)=\" \")*ROW($1:$35))-1)","v":{"$error":"#VALUE!"}},{"$error":"#VALUE!"},{"$error":"#VALUE!"},{"$error":"#VALUE!"},{"$error":"#VALUE!"}]
[null,null,null,null,null,null,{"$error":"#VALUE!"},{"$f":"UPPER(LEFT(F18))&MID(F18,2,MAX((MID(F18,ROW($1:$35),1)=\" \")*ROW($1:$35))-1)","v":{"$error":"#VALUE!"}},{"$error":"#VALUE!"},{"$error":"#VALUE!"},{"$error":"#VALUE!"},{"$error":"#VALUE!"}]
[null,null,null,null,null,null,{"$error":"#VALUE!"},{"$f":"UPPER(LEFT(F19))&MID(F19,2,MAX((MID(F19,ROW($1:$35),1)=\" \")*ROW($1:$35))-1)","v":{"$error":"#VALUE!"}},{"$error":"#VALUE!"},{"$error":"#VALUE!"},{"$error":"#VALUE!"},{"$error":"#VALUE!"}]
[null,null,null,null,null,null,{"$error":"#VALUE!"},{"$f":"UPPER(LEFT(F20))&MID(F20,2,MAX((MID(F20,ROW($1:$35),1)=\" \")*ROW($1:$35))-1)","v":{"$error":"#VALUE!"}},{"$error":"#VALUE!"},{"$error":"#VALUE!"},{"$error":"#VALUE!"},{"$error":"#VALUE!"}]
[null,null,null,null,null,null,{"$error":"#VALUE!"},{"$f":"UPPER(LEFT(F21))&MID(F21,2,MAX((MID(F21,ROW($1:$35),1)=\" \")*ROW($1:$35))-1)","v":{"$error":"#VALUE!"}},{"$error":"#VALUE!"},{"$error":"#VALUE!"},{"$error":"#VALUE!"},{"$error":"#VALUE!"}]
[null,null,null,null,null,null,{"$error":"#VALUE!"},{"$f":"UPPER(LEFT(F22))&MID(F22,2,MAX((MID(F22,ROW($1:$35),1)=\" \")*ROW($1:$35))-1)","v":{"$error":"#VALUE!"}},{"$error":"#VALUE!"},{"$error":"#VALUE!"},{"$error":"#VALUE!"},{"$error":"#VALUE!"}]
[null,null,null,null,null,null,{"$error":"#VALUE!"},{"$f":"UPPER(LEFT(F23))&MID(F23,2,MAX((MID(F23,ROW($1:$35),1)=\" \")*ROW($1:$35))-1)","v":{"$error":"#VALUE!"}},{"$error":"#VALUE!"},{"$error":"#VALUE!"},{"$error":"#VALUE!"},{"$error":"#VALUE!"}]
[null,null,null,null,null,null,{"$error":"#VALUE!"},{"$f":"UPPER(LEFT(F24))&MID(F24,2,MAX((MID(F24,ROW($1:$35),1)=\" \")*ROW($1:$35))-1)","v":{"$error":"#VALUE!"}},{"$error":"#VALUE!"},{"$error":"#VALUE!"},{"$error":"#VALUE!"},{"$error":"#VALUE!"}]
[null,null,null,null,null,null,{"$error":"#VALUE!"},{"$f":"UPPER(LEFT(F25))&MID(F25,2,MAX((MID(F25,ROW($1:$35),1)=\" \")*ROW($1:$35))-1)","v":{"$error":"#VALUE!"}},{"$error":"#VALUE!"},{"$error":"#VALUE!"},{"$error":"#VALUE!"},{"$error":"#VALUE!"}]
[null,null,null,null,null,null,{"$error":"#VALUE!"},{"$f":"UPPER(LEFT(F26))&MID(F26,2,MAX((MID(F26,ROW($1:$35),1)=\" \")*ROW($1:$35))-1)","v":{"$error":"#VALUE!"}},{"$error":"#VALUE!"},{"$error":"#VALUE!"},{"$error":"#VALUE!"},{"$error":"#VALUE!"}]
[null,null,null,null,null,null,0,{"$f":"UPPER(LEFT(F27))&MID($F27,2,_xlfn.AGGREGATE(14,6,ROW(INDIRECT(\"1:35\"))/(MID($F27&\" \",ROW(INDIRECT(\"1:35\")),1)=\" \"),1)-1)","v":""},0,null,"",0]
[null,null,null,null,null,null,0,"",0,null,"",0]
[null,null,null,null,null,null,0,"",0,null,"",0]
[null,null,null,null,null,null,0,"",0,null,"",0]
[null,null,null,null,null,null,0,"",0,null,"",0]
[null,null,null,null,null,null,0,"",0,null,"",0]
[null,null,null,null,null,null,0,"",0,null,"",0]
[null,null,null,null,null,null,0,"",0,null,"",0]
[null,null,null,null,null,null,0,"",0,null,"",0]
[null,null,null,null,null,null,0,"",0,null,"",0]
[null,null,null,null,null,null,0,"",0,null,"",0]
[null,null,null,null,null,null,0,"",0,null,"",0]
[null,null,null,null,null,null,0,"",0,null,"",0]
[null,null,null,null,null,null,0,"",0,null,"",0]
[null,null,null,null,null,null,0,"",0,null,"",0]
[null,null,null,null,null,null,0,"",0,null,"",0]
[null,null,null,null,null,null,null,"",0,null,"",0]
[null,null,null,null,null,null,null,"",0,null,"",0]
[null,null,null,null,null,null,null,"",0,null,"",0]
[null,null,null,null,null,null,null,"",0,null,"",0]
[null,null,null,null,null,null,null,"",0,null,"",0]
[null,null,null,null,null,null,null,"",0,null,"",0]
[null,null,null,null,null,null,null,"",0,null,"",0]
[null,null,null,null,null,null,null,"",0,null,"",0]
[null,null,null,null,null,null,null,"",0,null,"",0]
[null,null,null,null,null,null,null,"",0,null,"",0]
[null,null,null,null,null,null,null,"",0,null,"",{"$f":"J68","v":0}]
[null,null,null,null,null,null,null,"",0,null,"",0]
[null,null,null,null,null,null,null,"",0,null,"",0]
[null,null,null,null,null,null,null,"",0,null,"",0]
[null,null,null,null,null,null,null,"",0,null,"",0]
[null,null,null,null,null,null,null,"",0,null,"",0]
[null,null,null,null,null,null,null,"",0,null,"",0]
[null,null,null,null,null,null,null,"",0,null,"",0]
[null,null,null,null,null,null,null,"",0,null,"",0]
[null,null,null,null,null,null,null,"",0,null,"",0]
[null,null,null,null,null,null,null,"",0,null,"",0]
[null,null,null,null,null,null,null,"",0,null,"",0]
[null,null,null,null,null,null,null,"",0,null,"",0]
[null,null,null,null,null,null,null,"",0,null,"",0]
[null,null,null,null,null,null,null,"",0,null,"",0]
[null,null,null,null,null,null,null,"",0,null,"",0]
[null,null,null,null,null,null,null,"",0,null,"",0]
[null,null,null,null,null,null,null,"",0,null,"",0]
[null,null,null,null,null,null,null,"",0,null,"",0]
[null,null,null,null,null,null,null,"",0,null,"",0]
[null,null,null,null,null,null,null,"",0,null,"",0]
[null,null,null,null,null,null,null,"",0,null,"",0]
[null,null,null,null,null,null,null,"",0,null,"",0]
[null,null,null,null,null,null,null,"",0,null,"",0]
[null,null,null,null,null,null,null,"",0,null,"",0]
[null,null,null,null,null,null,null,{"$f":"UPPER(LEFT(F78))&MID($F78,2,_xlfn.AGGREGATE(14,6,ROW(INDIRECT(\"1:35\"))/(MID($F78&\" \",ROW(INDIRECT(\"1:35\")),1)=\" \"),1)-1)","v":""},{"$f":"LEN(J78)","v":0},null,{"$f":"H78","v":""},{"$f":"J93","v":0}]
[null,null,null,null,null,null,null,"",0,null,"",0]
[null,null,null,null,null,null,null,"",0,null,"",0]
[null,null,null,null,null,null,null,"",0,null,"",0]
[null,null,null,null,null,null,null,"",0,null,"",0]
[null,null,null,null,null,null,null,"",0,null,"",0]
[null,null,null,null,null,null,null,"",0,null,"",0]
[null,null,null,null,null,null,null,"",0,null,"",0]
[null,null,null,null,null,null,null,"",0,null,"",0]
[null,null,null,null,null,null,null,"",0,null,"",0]
[null,null,null,null,null,null,null,"",0,null,"",0]
[null,null,null,null,null,null,null,"",0,null,"",0]
[null,null,null,null,null,null,null,"",null,null,"",0]
[null,null,null,null,null,null,null,"",null,null,"",0]
[null,null,null,null,null,null,null,"",null,null,"",0]
[null,null,null,null,null,null,null,"",null,null,"",0]
[null,null,null,null,null,null,null,"",null,null,"",0]
[null,null,null,null,null,null,null,"",null,null,"",0]
[null,null,null,null,null,null,null,"",null,null,"",0]
[null,null,null,null,null,null,null,"",null,null,"",0]
[null,null,null,null,null,null,null,"",null,null,"",0]
[null,null,null,null,null,null,null,"",null,null,"",0]
[null,null,null,null,null,null,null,"",null,null,"",0]
[null,null,null,null,null,null,null,"",null,null,"",0]
[null,null,null,null,null,null,null,"",null,null,"",0]
[null,null,null,null,null,null,null,"",null,null,"",0]
[null,null,null,null,null,null,null,"",null,null,"",0]
[null,null,null,null,null,null,null,"",null,null,"",0]
[null,null,null,null,null,null,null,"",null,null,"",0]
[null,null,null,null,null,null,null,"",null,null,"",0]
[null,null,null,null,null,null,null,"",null,null,"",0]
[null,null,null,null,null,null,null,"",null,null,"",0]
[null,null,null,null,null,null,null,"",null,null,"",0]
[null,null,null,null,null,null,null,"",null,null,"",0]
[null,null,null,null,null,null,null,"",null,null,"",0]
[null,null,null,null,null,null,null,"",null,null,"",0]
[null,null,null,null,null,null,null,"",null,null,"",0]
[null,null,null,null,null,null,null,"",null,null,"",0]
[null,null,null,null,null,null,null,"",null,null,"",0]
[null,null,null,null,null,null,null,"",null,null,"",0]
[null,null,null,null,null,null,null,"",null,null,"",0]
[null,null,null,null,null,null,null,"",null,null,"",0]
[null,null,null,null,null,null,null,"",null,null,"",0]
[null,null,null,null,null,null,null,"",null,null,"",0]
[null,null,null,null,null,null,null,"",null,null,"",0]
[null,null,null,null,null,null,null,"",null,null,"",0]
[null,null,null,null,null,null,null,"",null,null,"",0]
[null,null,null,null,null,null,null,"",null,null,"",0]
[null,null,null,null,null,null,null,"",null,null,"",0]
[null,null,null,null,null,null,null,"",null,null,"",0]
[null,null,null,null,null,null,null,"",null,null,"",0]
[null,null,null,null,null,null,null,"",null,null,"",0]
[null,null,null,null,null,null,null,"",null,null,"",0]
[null,null,null,null,null,null,null,"",null,null,"",0]
[null,null,null,null,null,null,null,"",null,null,"",0]
[null,null,null,null,null,null,null,"",null,null,"",0]
[null,null,null,null,null,null,null,"",null,null,"",0]
[null,null,null,null,null,null,null,"",null,null,"",0]
[null,null,null,null,null,null,null,"",null,null,"",0]
[null,null,null,null,null,null,null,"",null,null,"",0]
[null,null,null,null,null,null,null,"",null,null,"",0]
[null,null,null,null,null,null,null,"",null,null,"",0]
[null,null,null,null,null,null,null,"",null,null,"",0]
[null,null,null,null,null,null,null,"",null,null,"",0]
[null,null,null,null,null,null,null,{"$f":"UPPER(LEFT(F142))&MID($F142,2,_xlfn.AGGREGATE(14,6,ROW(INDIRECT(\"1:35\"))/(MID($F142&\" \",ROW(INDIRECT(\"1:35\")),1)=\" \"),1)-1)","v":""},null,null,{"$f":"H142","v":""},{"$f":"J157","v":0}]
[null,null,null,null,null,null,null,"",null,null,"",0]
[null,null,null,null,null,null,null,"",null,null,"",0]
[null,null,null,null,null,null,null,"",null,null,"",0]
[null,null,null,null,null,null,null,"",null,null,"",0]
[null,null,null,null,null,null,null,"",null,null,"",0]
[null,null,null,null,null,null,null,"",null,null,"",0]
[null,null,null,null,null,null,null,"",null,null,"",0]
[null,null,null,null,null,null,null,"",null,null,"",0]
[null,null,null,null,null,null,null,"",null,null,"",0]
[null,null,null,null,null,null,null,"",null,null,"",0]
[null,null,null,null,null,null,null,"",null,null,"",0]
[null,null,null,null,null,null,null,"",null,null,"",0]
[null,null,null,null,null,null,null,"",null,null,"",0]
[null,null,null,null,null,null,null,"",null,null,"",0]
[null,null,null,null,null,null,null,"",null,null,"",0]
[null,null,null,null,null,null,null,"",null,null,"",0]
[null,null,null,null,null,null,null,"",null,null,"",0]
[null,null,null,null,null,null,null,"",null,null,"",0]
[null,null,null,null,null,null,null,"",null,null,"",0]
[null,null,null,null,null,null,null,"",null,null,"",0]
[null,null,null,null,null,null,null,"",null,null,"",0]
[null,null,null,null,null,null,null,"",null,null,"",0]
[null,null,null,null,null,null,null,"",null,null,"",0]
[null,null,null,null,null,null,null,"",null,null,"",0]
[null,null,null,null,null,null,null,"",null,null,"",0]
[null,null,null,null,null,null,null,"",null,null,"",0]
[null,null,null,null,null,null,null,"",null,null,"",0]
[null,null,null,null,null,null,null,"",null,null,"",0]
[null,null,null,null,null,null,null,"",null,null,"",0]
[null,null,null,null,null,null,null,"",null,null,"",0]
[null,null,null,null,null,null,null,"",null,null,"",0]
[null,null,null,null,null,null,null,"",null,null,"",0]
[null,null,null,null,null,null,null,"",null,null,"",0]
[null,null,null,null,null,null,null,"",null,null,"",0]
[null,null,null,null,null,null,null,"",null,null,"",0]
[null,null,null,null,null,null,null,"",null,null,"",0]
[null,null,null,null,null,null,null,"",null,null,"",0]
[null,null,null,null,null,null,null,"",null,null,"",0]
[null,null,null,null,null,null,null,"",null,null,"",0]
[null,null,null,null,null,null,null,"",null,null,"",0]
[null,null,null,null,null,null,null,"",null,null,"",0]
[null,null,null,null,null,null,null,"",null,null,"",0]
[null,null,null,null,null,null,null,"",null,null,"",0]
[null,null,null,null,null,null,null,"",null,null,"",0]
[null,null,null,null,null,null,null,"",null,null,"",0]
[null,null,null,null,null,null,null,"",null,null,"",0]
[null,null,null,null,null,null,null,"",null,null,"",0]
[null,null,null,null,null,null,null,"",null,null,"",0]
[null,null,null,null,null,null,null,"",null,null,"",0]
[null,null,null,null,null,null,null,"",null,null,"",0]
[null,null,null,null,null,null,null,"",null,null,"",0]
[null,null,null,null,null,null,null,"",null,null,"",0]
[null,null,null,null,null,null,null,"",null,null,"",0]
[null,null,null,null,null,null,null,"",null,null,"",0]
[null,null,null,null,null,null,null,"",null,null,"",0]
[null,null,null,null,null,null,null,"",null,null,"",0]
[null,null,null,null,null,null,null,"",null,null,"",0]
[null,null,null,null,null,null,null,"",null,null,"",0]
[null,null,null,null,null,null,null,"",null,null,"",0]
[null,null,null,null,null,null,null,"",null,null,"",0]
[null,null,null,null,null,null,null,"",null,null,"",0]
[null,null,null,null,null,null,null,"",null,null,"",0]
[null,null,null,null,null,null,null,"",null,null,"",0]
[null,null,null,null,null,null,null,{"$f":"UPPER(LEFT(F206))&MID($F206,2,_xlfn.AGGREGATE(14,6,ROW(INDIRECT(\"1:35\"))/(MID($F206&\" \",ROW(INDIRECT(\"1:35\")),1)=\" \"),1)-1)","v":""},null,null,{"$f":"H206","v":""},{"$f":"J221","v":0}]
[null,null,null,null,null,null,null,"",null,null,"",0]
[null,null,null,null,null,null,null,"",null,null,"",0]
[null,null,null,null,null,null,null,"",null,null,"",0]
[null,null,null,null,null,null,null,"",null,null,"",0]
[null,null,null,null,null,null,null,"",null,null,"",0]
[null,null,null,null,null,null,null,"",null,null,"",0]
[null,null,null,null,null,null,null,"",null,null,"",0]
[null,null,null,null,null,null,null,"",null,null,"",0]
[null,null,null,null,null,null,null,"",null,null,"",0]
[null,null,null,null,null,null,null,"",null,null,"",0]
[null,null,null,null,null,null,null,"",null,null,"",0]
[null,null,null,null,null,null,null,"",null,null,"",0]
[null,null,null,null,null,null,null,"",null,null,"",0]
[null,null,null,null,null,null,null,"",null,null,"",0]
[null,null,null,null,null,null,null,"",null,null,"",0]
[null,null,null,null,null,null,null,"",null,null,"",0]
[null,null,null,null,null,null,null,"",null,null,"",0]
[null,null,null,null,null,null,null,"",null,null,"",0]
[null,null,null,null,null,null,null,"",null,null,"",0]
[null,null,null,null,null,null,null,"",null,null,"",0]
[null,null,null,null,null,null,null,"",null,null,"",0]
[null,null,null,null,null,null,null,"",null,null,"",0]
[null,null,null,null,null,null,null,"",null,null,"",0]
[null,null,null,null,null,null,null,"",null,null,"",0]
[null,null,null,null,null,null,null,"",null,null,"",0]
[null,null,null,null,null,null,null,"",null,null,"",0]
[null,null,null,null,null,null,null,"",null,null,"",0]
[null,null,null,null,null,null,null,"",null,null,"",0]
[null,null,null,null,null,null,null,"",null,null,"",0]
[null,null,null,null,null,null,null,"",null,null,"",0]
[null,null,null,null,null,null,null,"",null,null,"",0]
[null,null,null,null,null,null,null,"",null,null,"",0]
[null,null,null,null,null,null,null,"",null,null,"",0]
[null,null,null,null,null,null,null,"",null,null,"",0]
[null,null,null,null,null,null,null,"",null,null,"",0]
[null,null,null,null,null,null,null,"",null,null,"",0]
[null,null,null,null,null,null,null,"",null,null,"",0]
[null,null,null,null,null,null,null,"",null,null,"",0]
[null,null,null,null,null,null,null,"",null,null,"",0]
[null,null,null,null,null,null,null,"",null,null,"",0]
[null,null,null,null,null,null,null,"",null,null,"",0]
[null,null,null,null,null,null,null,"",null,null,"",0]
[null,null,null,null,null,null,null,"",null,null,"",0]
[null,null,null,null,null,null,null,"",null,null,"",0]
[null,null,null,null,null,null,null,"",null,null,"",0]
[null,null,null,null,null,null,null,"",null,null,"",0]
[null,null,null,null,null,null,null,"",null,null,"",0]
[null,null,null,null,null,null,null,"",null,null,"",0]
[null,null,null,null,null,null,null,"",null,null,"",0]
[null,null,null,null,null,null,null,"",null,null,"",0]
[null,null,null,null,null,null,null,"",null,null,"",0]
[null,null,null,null,null,null,null,"",null,null,"",0]
[null,null,null,null,null,null,null,"",null,null,"",0]
[null,null,null,null,null,null,null,"",null,null,"",0]
[null,null,null,null,null,null,null,"",null,null,"",0]
[null,null,null,null,null,null,null,"",null,null,"",0]
[null,null,null,null,null,null,null,"",null,null,"",0]
[null,null,null,null,null,null,null,"",null,null,"",0]
[null,null,null,null,null,null,null,"",null,null,"",0]
[null,null,null,null,null,null,null,"",null,null,"",0]
[null,null,null,null,null,null,null,"",null,null,"",0]
[null,null,null,null,null,null,null,"",null,null,"",0]
[null,null,null,null,null,null,null,"",null,null,"",0]
[null,null,null,null,null,null,null,{"$f":"UPPER(LEFT(F270))&MID($F270,2,_xlfn.AGGREGATE(14,6,ROW(INDIRECT(\"1:35\"))/(MID($F270&\" \",ROW(INDIRECT(\"1:35\")),1)=\" \"),1)-1)","v":""},null,null,{"$f":"H270","v":""},{"$f":"J285","v":0}]
[null,null,null,null,null,null,null,"",null,null,"",0]
[null,null,null,null,null,null,null,"",null,null,"",0]
[null,null,null,null,null,null,null,"",null,null,"",0]
[null,null,null,null,null,null,null,"",null,null,"",0]
[null,null,null,null,null,null,null,"",null,null,"",0]
[null,null,null,null,null,null,null,"",null,null,"",0]
[null,null,null,null,null,null,null,"",null,null,"",0]
[null,null,null,null,null,null,null,"",null,null,"",0]
[null,null,null,null,null,null,null,"",null,null,"",0]
[null,null,null,null,null,null,null,"",null,null,"",0]
[null,null,null,null,null,null,null,"",null,null,"",0]
[null,null,null,null,null,null,null,"",null,null,"",0]
[null,null,null,null,null,null,null,"",null,null,"",0]
[null,null,null,null,null,null,null,"",null,null,"",0]
[null,null,null,null,null,null,null,"",null,null,"",0]
[null,null,null,null,null,null,null,"",null,null,"",0]
[null,null,null,null,null,null,null,"",null,null,""]
[null,null,null,null,null,null,null,"",null,null,""]
[null,null,null,null,null,null,null,"",null,null,""]
[null,null,null,null,null,null,null,"",null,null,""]
[null,null,null,null,null,null,null,"",null,null,""]
[null,null,null,null,null,null,null,"",null,null,""]
[null,null,null,null,null,null,null,"",null,null,""]
[null,null,null,null,null,null,null,"",null,null,""]
[null,null,null,null,null,null,null,"",null,null,""]
[null,null,null,null,null,null,null,"",null,null,""]
[null,null,null,null,null,null,null,"",null,null,""]
[null,null,null,null,null,null,null,"",null,null,""]
[null,null,null,null,null,null,null,"",null,null,""]
[null,null,null,null,null,null,null,"",null,null,""]
[null,null,null,null,null,null,null,"",null,null,""]
[null,null,null,null,null,null,null,"",null,null,""]
[null,null,null,null,null,null,null,"",null,null,""]
[null,null,null,null,null,null,null,"",null,null,""]
[null,null,null,null,null,null,null,"",null,null,""]
[null,null,null,null,null,null,null,"",null,null,""]
[null,null,null,null,null,null,null,"",null,null,""]
[null,null,null,null,null,null,null,"",null,null,""]
[null,null,null,null,null,null,null,"",null,null,""]
[null,null,null,null,null,null,null,"",null,null,""]
[null,null,null,null,null,null,null,"",null,null,""]
[null,null,null,null,null,null,null,"",null,null,""]
[null,null,null,null,null,null,null,"",null,null,""]
[null,null,null,null,null,null,null,"",null,null,""]
[null,null,null,null,null,null,null,"",null,null,""]
[null,null,null,null,null,null,null,"",null,null,""]
[null,null,null,null,null,null,null,"",null,null,""]
[null,null,null,null,null,null,null,"",null,null,""]
[null,null,null,null,null,null,null,"",null,null,""]
[null,null,null,null,null,null,null,"",null,null,""]
[null,null,null,null,null,null,null,"",null,null,""]
[null,null,null,null,null,null,null,"",null,null,""]
[null,null,null,null,null,null,null,"",null,null,""]
[null,null,null,null,null,null,null,"",null,null,""]
[null,null,null,null,null,null,null,"",null,null,""]
[null,null,null,null,null,null,null,"",null,null,""]
[null,null,null,null,null,null,null,"",null,null,""]
[null,null,null,null,null,null,null,"",null,null,""]
[null,null,null,null,null,null,null,"",null,null,""]
[null,null,null,null,null,null,null,"",null,null,""]
[null,null,null,null,null,null,null,"",null,null,""]
[null,null,null,null,null,null,null,"",null,null,""]
[null,null,null,null,null,null,null,"",null,null,""]
[null,null,null,null,null,null,null,{"$f":"UPPER(LEFT(F334))&MID($F334,2,_xlfn.AGGREGATE(14,6,ROW(INDIRECT(\"1:35\"))/(MID($F334&\" \",ROW(INDIRECT(\"1:35\")),1)=\" \"),1)-1)","v":""},null,null,{"$f":"H334","v":""}]
[null,null,null,null,null,null,null,"",null,null,""]
[null,null,null,null,null,null,null,"",null,null,""]
[null,null,null,null,null,null,null,"",null,null,""]
[null,null,null,null,null,null,null,"",null,null,""]
[null,null,null,null,null,null,null,"",null,null,""]
[null,null,null,null,null,null,null,"",null,null,""]
[null,null,null,null,null,null,null,"",null,null,""]
[null,null,null,null,null,null,null,"",null,null,""]
[null,null,null,null,null,null,null,"",null,null,""]
[null,null,null,null,null,null,null,"",null,null,""]
[null,null,null,null,null,null,null,"",null,null,""]
[null,null,null,null,null,null,null,"",null,null,""]
[null,null,null,null,null,null,null,"",null,null,""]
[null,null,null,null,null,null,null,"",null,null,""]
[null,null,null,null,null,null,null,"",null,null,""]
[null,null,null,null,null,null,null,"",null,null,""]
[null,null,null,null,null,null,null,"",null,null,""]
[null,null,null,null,null,null,null,"",null,null,""]
[null,null,null,null,null,null,null,"",null,null,""]
[null,null,null,null,null,null,null,"",null,null,""]
[null,null,null,null,null,null,null,"",null,null,""]
[null,null,null,null,null,null,null,"",null,null,""]
[null,null,null,null,null,null,null,"",null,null,""]
[null,null,null,null,null,null,null,"",null,null,""]
[null,null,null,null,null,null,null,"",null,null,""]
[null,null,null,null,null,null,null,"",null,null,""]
[null,null,null,null,null,null,null,"",null,null,""]
[null,null,null,null,null,null,null,"",null,null,""]
[null,null,null,null,null,null,null,"",null,null,""]
[null,null,null,null,null,null,null,"",null,null,""]
[null,null,null,null,null,null,null,"",null,null,""]
[null,null,null,null,null,null,null,"",null,null,""]
[null,null,null,null,null,null,null,"",null,null,""]
[null,null,null,null,null,null,null,"",null,null,""]
[null,null,null,null,null,null,null,"",null,null,""]
[null,null,null,null,null,null,null,"",null,null,""]
[null,null,null,null,null,null,null,"",null,null,""]
[null,null,null,null,null,null,null,"",null,null,""]
[null,null,null,null,null,null,null,"",null,null,""]
[null,null,null,null,null,null,null,"",null,null,""]
[null,null,null,null,null,null,null,"",null,null,""]
[null,null,null,null,null,null,null,"",null,null,""]
[null,null,null,null,null,null,null,"",null,null,""]
[null,null,null,null,null,null,null,"",null,null,""]
[null,null,null,null,null,null,null,"",null,null,""]
[null,null,null,null,null,null,null,"",null,null,""]
[null,null,null,null,null,null,null,"",null,null,""]
[null,null,null,null,null,null,null,"",null,null,""]
[null,null,null,null,null,null,null,"",null,null,""]
[null,null,null,null,null,null,null,"",null,null,""]
[null,null,null,null,null,null,null,"",null,null,""]
[null,null,null,null,null,null,null,"",null,null,""]
[null,null,null,null,null,null,null,"",null,null,""]
[null,null,null,null,null,null,null,"",null,null,""]
[null,null,null,null,null,null,null,"",null,null,""]
[null,null,null,null,null,null,null,"",null,null,""]
[null,null,null,null,null,null,null,"",null,null,""]
[null,null,null,null,null,null,null,"",null,null,""]
[null,null,null,null,null,null,null,"",null,null,""]
[null,null,null,null,null,null,null,"",null,null,""]
[null,null,null,null,null,null,null,"",null,null,""]
[null,null,null,null,null,null,null,"",null,null,""]
[null,null,null,null,null,null,null,"",null,null,""]
[null,null,null,null,null,null,null,{"$f":"UPPER(LEFT(F398))&MID($F398,2,_xlfn.AGGREGATE(14,6,ROW(INDIRECT(\"1:35\"))/(MID($F398&\" \",ROW(INDIRECT(\"1:35\")),1)=\" \"),1)-1)","v":""},null,null,{"$f":"H398","v":""}]
[null,null,null,null,null,null,null,"",null,null,""]
[null,null,null,null,null,null,null,"",null,null,""]
[null,null,null,null,null,null,null,"",null,null,""]
[null,null,null,null,null,null,null,"",null,null,""]
[null,null,null,null,null,null,null,"",null,null,""]
[null,null,null,null,null,null,null,"",null,null,""]
[null,null,null,null,null,null,null,"",null,null,""]
[null,null,null,null,null,null,null,"",null,null,""]
[null,null,null,null,null,null,null,"",null,null,""]
[null,null,null,null,null,null,null,"",null,null,""]
[null,null,null,null,null,null,null,"",null,null,""]
[null,null,null,null,null,null,null,"",null,null,""]
[null,null,null,null,null,null,null,"",null,null,""]
[null,null,null,null,null,null,null,"",null,null,""]
[null,null,null,null,null,null,null,"",null,null,""]
[null,null,null,null,null,null,null,"",null,null,""]
[null,null,null,null,null,null,null,"",null,null,""]
[null,null,null,null,null,null,null,"",null,null,""]
[null,null,null,null,null,null,null,"",null,null,""]
[null,null,null,null,null,null,null,"",null,null,""]
[null,null,null,null,null,null,null,"",null,null,""]
[null,null,null,null,null,null,null,"",null,null,""]
[null,null,null,null,null,null,null,"",null,null,""]
[null,null,null,null,null,null,null,"",null,null,""]
[null,null,null,null,null,null,null,"",null,null,""]
[null,null,null,null,null,null,null,"",null,null,""]
[null,null,null,null,null,null,null,"",null,null,""]
[null,null,null,null,null,null,null,"",null,null,""]
[null,null,null,null,null,null,null,"",null,null,""]
[null,null,null,null,null,null,null,"",null,null,""]
[null,null,null,null,null,null,null,"",null,null,""]
[null,null,null,null,null,null,null,"",null,null,""]
[null,null,null,null,null,null,null,"",null,null,""]
[null,null,null,null,null,null,null,"",null,null,""]
[null,null,null,null,null,null,null,"",null,null,""]
[null,null,null,null,null,null,null,"",null,null,""]
[null,null,null,null,null,null,null,"",null,null,""]
[null,null,null,null,null,null,null,"",null,null,""]
[null,null,null,null,null,null,null,"",null,null,""]
[null,null,null,null,null,null,null,"",null,null,""]
[null,null,null,null,null,null,null,"",null,null,""]
[null,null,null,null,null,null,null,"",null,null,""]
[null,null,null,null,null,null,null,"",null,null,""]
[null,null,null,null,null,null,null,"",null,null,""]
[null,null,null,null,null,null,null,"",null,null,""]
[null,null,null,null,null,null,null,"",null,null,""]
[null,null,null,null,null,null,null,"",null,null,""]
[null,null,null,null,null,null,null,"",null,null,""]
[null,null,null,null,null,null,null,"",null,null,""]
[null,null,null,null,null,null,null,"",null,null,""]
[null,null,null,null,null,null,null,"",null,null,""]
[null,null,null,null,null,null,null,"",null,null,""]
[null,null,null,null,null,null,null,"",null,null,""]
[null,null,null,null,null,null,null,"",null,null,""]
[null,null,null,null,null,null,null,"",null,null,""]
[null,null,null,null,null,null,null,"",null,null,""]
[null,null,null,null,null,null,null,"",null,null,""]
[null,null,null,null,null,null,null,"",null,null,""]
[null,null,null,null,null,null,null,"",null,null,""]
[null,null,null,null,null,null,null,"",null,null,""]
[null,null,null,null,null,null,null,"",null,null,""]
[null,null,null,null,null,null,null,"",null,null,""]
[null,null,null,null,null,null,null,"",null,null,""]
[null,null,null,null,null,null,null,{"$f":"UPPER(LEFT(F462))&MID($F462,2,_xlfn.AGGREGATE(14,6,ROW(INDIRECT(\"1:35\"))/(MID($F462&\" \",ROW(INDIRECT(\"1:35\")),1)=\" \"),1)-1)","v":""},null,null,{"$f":"H462","v":""}]
[null,null,null,null,null,null,null,"",null,null,""]
[null,null,null,null,null,null,null,"",null,null,""]
[null,null,null,null,null,null,null,"",null,null,""]
[null,null,null,null,null,null,null,"",null,null,""]
[null,null,null,null,null,null,null,"",null,null,""]
[null,null,null,null,null,null,null,"",null,null,""]
[null,null,null,null,null,null,null,"",null,null,""]
[null,null,null,null,null,null,null,"",null,null,""]
[null,null,null,null,null,null,null,"",null,null,""]
[null,null,null,null,null,null,null,"",null,null,""]
[null,null,null,null,null,null,null,"",null,null,""]
[null,null,null,null,null,null,null,"",null,null,""]
[null,null,null,null,null,null,null,"",null,null,""]
[null,null,null,null,null,null,null,"",null,null,""]
[null,null,null,null,null,null,null,"",null,null,""]
[null,null,null,null,null,null,null,"",null,null,""]
[null,null,null,null,null,null,null,"",null,null,""]
[null,null,null,null,null,null,null,"",null,null,""]
[null,null,null,null,null,null,null,"",null,null,""]
[null,null,null,null,null,null,null,"",null,null,""]
[null,null,null,null,null,null,null,"",null,null,""]
[null,null,null,null,null,null,null,"",null,null,""]
[null,null,null,null,null,null,null,"",null,null,""]
[null,null,null,null,null,null,null,"",null,null,""]
[null,null,null,null,null,null,null,"",null,null,""]
[null,null,null,null,null,null,null,"",null,null,""]
[null,null,null,null,null,null,null,"",null,null,""]
[null,null,null,null,null,null,null,"",null,null,""]
[null,null,null,null,null,null,null,"",null,null,""]
[null,null,null,null,null,null,null,"",null,null,""]
[null,null,null,null,null,null,null,"",null,null,""]
[null,null,null,null,null,null,null,"",null,null,""]
[null,null,null,null,null,null,null,"",null,null,""]
[null,null,null,null,null,null,null,"",null,null,""]
[null,null,null,null,null,null,null,"",null,null,""]
[null,null,null,null,null,null,null,"",null,null,""]
[null,null,null,null,null,null,null,"",null,null,""]
[null,null,null,null,null,null,null,"",null,null,""]
[null,null,null,null,null,null,null,"",null,null,""]
[null,null,null,null,null,null,null,"",null,null,""]
[null,null,null,null,null,null,null,"",null,null,""]
[null,null,null,null,null,null,null,"",null,null,""]
[null,null,null,null,null,null,null,"",null,null,""]
[null,null,null,null,null,null,null,"",null,null,""]
[null,null,null,null,null,null,null,"",null,null,""]
[null,null,null,null,null,null,null,"",null,null,""]
[null,null,null,null,null,null,null,"",null,null,""]
[null,null,null,null,null,null,null,"",null,null,""]
[null,null,null,null,null,null,null,"",null,null,""]
[null,null,null,null,null,null,null,"",null,null,""]
[null,null,null,null,null,null,null,"",null,null,""]
[null,null,null,null,null,null,null,"",null,null,""]
[null,null,null,null,null,null,null,"",null,null,""]
[null,null,null,null,null,null,null,"",null,null,""]
[null,null,null,null,null,null,null,"",null,null,""]
[null,null,null,null,null,null,null,"",null,null,""]
[null,null,null,null,null,null,null,"",null,null,""]
[null,null,null,null,null,null,null,"",null,null,""]
[null,null,null,null,null,null,null,"",null,null,""]
[null,null,null,null,null,null,null,"",null,null,""]
[null,null,null,null,null,null,null,"",null,null,""]
[null,null,null,null,null,null,null,"",null,null,""]
[null,null,null,null,null,null,null,"",null,null,""]
[null,null,null,null,null,null,null,{"$f":"UPPER(LEFT(F526))&MID($F526,2,_xlfn.AGGREGATE(14,6,ROW(INDIRECT(\"1:35\"))/(MID($F526&\" \",ROW(INDIRECT(\"1:35\")),1)=\" \"),1)-1)","v":""},null,null,{"$f":"H526","v":""}]
[null,null,null,null,null,null,null,"",null,null,""]
[null,null,null,null,null,null,null,"",null,null,""]
[null,null,null,null,null,null,null,"",null,null,""]
[null,null,null,null,null,null,null,"",null,null,""]
[null,null,null,null,null,null,null,"",null,null,""]
[null,null,null,null,null,null,null,"",null,null,""]
[null,null,null,null,null,null,null,"",null,null,""]
[null,null,null,null,null,null,null,"",null,null,""]
[null,null,null,null,null,null,null,"",null,null,""]
[null,null,null,null,null,null,null,"",null,null,""]
[null,null,null,null,null,null,null,"",null,null,""]
[null,null,null,null,null,null,null,"",null,null,""]
[null,null,null,null,null,null,null,"",null,null,""]
[null,null,null,null,null,null,null,"",null,null,""]
[null,null,null,null,null,null,null,"",null,null,""]
[null,null,null,null,null,null,null,"",null,null,""]
[null,null,null,null,null,null,null,"",null,null,""]
[null,null,null,null,null,null,null,"",null,null,""]
[null,null,null,null,null,null,null,"",null,null,""]
[null,null,null,null,null,null,null,"",null,null,""]
[null,null,null,null,null,null,null,"",null,null,""]
[null,null,null,null,null,null,null,"",null,null,""]
[null,null,null,null,null,null,null,"",null,null,""]
[null,null,null,null,null,null,null,"",null,null,""]
[null,null,null,null,null,null,null,"",null,null,""]
[null,null,null,null,null,null,null,"",null,null,""]
[null,null,null,null,null,null,null,"",null,null,""]
[null,null,null,null,null,null,null,"",null,null,""]
[null,null,null,null,null,null,null,"",null,null,""]
[null,null,null,null,null,null,null,"",null,null,""]
[null,null,null,null,null,null,null,"",null,null,""]
[null,null,null,null,null,null,null,"",null,null,""]
[null,null,null,null,null,null,null,"",null,null,""]
[null,null,null,null,null,null,null,"",null,null,""]
[null,null,null,null,null,null,null,"",null,null,""]
[null,null,null,null,null,null,null,"",null,null,""]
[null,null,null,null,null,null,null,"",null,null,""]
[null,null,null,null,null,null,null,"",null,null,""]
[null,null,null,null,null,null,null,"",null,null,""]
[null,null,null,null,null,null,null,"",null,null,""]
[null,null,null,null,null,null,null,"",null,null,""]
[null,null,null,null,null,null,null,"",null,null,""]
[null,null,null,null,null,null,null,"",null,null,""]
[null,null,null,null,null,null,null,"",null,null,""]
[null,null,null,null,null,null,null,"",null,null,""]
[null,null,null,null,null,null,null,"",null,null,""]
[null,null,null,null,null,null,null,"",null,null,""]
[null,null,null,null,null,null,null,"",null,null,""]
[null,null,null,null,null,null,null,"",null,null,""]
[null,null,null,null,null,null,null,"",null,null,""]
[null,null,null,null,null,null,null,"",null,null,""]
[null,null,null,null,null,null,null,"",null,null,""]
[null,null,null,null,null,null,null,"",null,null,""]
[null,null,null,null,null,null,null,"",null,null,""]
[null,null,null,null,null,null,null,"",null,null,""]
[null,null,null,null,null,null,null,"",null,null,""]
[null,null,null,null,null,null,null,"",null,null,""]
[null,null,null,null,null,null,null,"",null,null,""]
[null,null,null,null,null,null,null,"",null,null,""]
[null,null,null,null,null,null,null,"",null,null,""]
[null,null,null,null,null,null,null,"",null,null,""]
[null,null,null,null,null,null,null,"",null,null,""]
[null,null,null,null,null,null,null,"",null,null,""]
[null,null,null,null,null,null,null,{"$f":"UPPER(LEFT(F590))&MID($F590,2,_xlfn.AGGREGATE(14,6,ROW(INDIRECT(\"1:35\"))/(MID($F590&\" \",ROW(INDIRECT(\"1:35\")),1)=\" \"),1)-1)","v":""},null,null,{"$f":"H590","v":""}]
[null,null,null,null,null,null,null,"",null,null,""]
[null,null,null,null,null,null,null,"",null,null,""]
[null,null,null,null,null,null,null,"",null,null,""]
[null,null,null,null,null,null,null,"",null,null,""]
[null,null,null,null,null,null,null,"",null,null,""]
[null,null,null,null,null,null,null,"",null,null,""]
[null,null,null,null,null,null,null,"",null,null,""]
[null,null,null,null,null,null,null,"",null,null,""]
[null,null,null,null,null,null,null,"",null,null,""]
[null,null,null,null,null,null,null,"",null,null,""]
[null,null,null,null,null,null,null,"",null,null,""]
[null,null,null,null,null,null,null,"",null,null,""]
[null,null,null,null,null,null,null,"",null,null,""]
[null,null,null,null,null,null,null,"",null,null,""]
[null,null,null,null,null,null,null,"",null,null,""]
[null,null,null,null,null,null,null,"",null,null,""]
[null,null,null,null,null,null,null,"",null,null,""]
[null,null,null,null,null,null,null,"",null,null,""]
[null,null,null,null,null,null,null,"",null,null,""]
[null,null,null,null,null,null,null,"",null,null,""]
[null,null,null,null,null,null,null,"",null,null,""]
[null,null,null,null,null,null,null,"",null,null,""]
[null,null,null,null,null,null,null,"",null,null,""]
[null,null,null,null,null,null,null,"",null,null,""]
[null,null,null,null,null,null,null,"",null,null,""]
[null,null,null,null,null,null,null,"",null,null,""]
[null,null,null,null,null,null,null,"",null,null,""]
[null,null,null,null,null,null,null,"",null,null,""]
[null,null,null,null,null,null,null,"",null,null,""]
[null,null,null,null,null,null,null,"",null,null,""]
[null,null,null,null,null,null,null,"",null,null,""]
[null,null,null,null,null,null,null,"",null,null,""]
[null,null,null,null,null,null,null,"",null,null,""]
[null,null,null,null,null,null,null,"",null,null,""]
[null,null,null,null,null,null,null,"",null,null,""]
[null,null,null,null,null,null,null,"",null,null,""]
[null,null,null,null,null,null,null,"",null,null,""]
[null,null,null,null,null,null,null,"",null,null,""]
[null,null,null,null,null,null,null,"",null,null,""]
[null,null,null,null,null,null,null,"",null,null,""]
[null,null,null,null,null,null,null,"",null,null,""]
[null,null,null,null,null,null,null,"",null,null,""]
[null,null,null,null,null,null,null,"",null,null,""]
[null,null,null,null,null,null,null,"",null,null,""]
[null,null,null,null,null,null,null,"",null,null,""]
[null,null,null,null,null,null,null,"",null,null,""]
[null,null,null,null,null,null,null,"",null,null,""]
[null,null,null,null,null,null,null,"",null,null,""]
[null,null,null,null,null,null,null,"",null,null,""]
[null,null,null,null,null,null,null,"",null,null,""]
[null,null,null,null,null,null,null,"",null,null,""]
[null,null,null,null,null,null,null,"",null,null,""]
[null,null,null,null,null,null,null,"",null,null,""]
[null,null,null,null,null,null,null,"",null,null,""]
[null,null,null,null,null,null,null,"",null,null,""]
[null,null,null,null,null,null,null,"",null,null,""]
[null,null,null,null,null,null,null,"",null,null,""]
[null,null,null,null,null,null,null,"",null,null,""]
[null,null,null,null,null,null,null,"",null,null,""]
[null,null,null,null,null,null,null,"",null,null,""]
[null,null,null,null,null,null,null,"",null,null,""]
[null,null,null,null,null,null,null,"",null,null,""]
[null,null,null,null,null,null,null,"",null,null,""]
[null,null,null,null,null,null,null,{"$f":"UPPER(LEFT(F654))&MID($F654,2,_xlfn.AGGREGATE(14,6,ROW(INDIRECT(\"1:35\"))/(MID($F654&\" \",ROW(INDIRECT(\"1:35\")),1)=\" \"),1)-1)","v":""},null,null,{"$f":"H654","v":""}]
[null,null,null,null,null,null,null,"",null,null,""]
[null,null,null,null,null,null,null,"",null,null,""]
[null,null,null,null,null,null,null,"",null,null,""]
[null,null,null,null,null,null,null,"",null,null,""]
[null,null,null,null,null,null,null,"",null,null,""]
[null,null,null,null,null,null,null,"",null,null,""]
[null,null,null,null,null,null,null,"",null,null,""]
[null,null,null,null,null,null,null,"",null,null,""]
[null,null,null,null,null,null,null,"",null,null,""]
[null,null,null,null,null,null,null,"",null,null,""]
[null,null,null,null,null,null,null,"",null,null,""]
[null,null,null,null,null,null,null,"",null,null,""]
[null,null,null,null,null,null,null,"",null,null,""]
[null,null,null,null,null,null,null,"",null,null,""]
[null,null,null,null,null,null,null,"",null,null,""]
[null,null,null,null,null,null,null,"",null,null,""]
[null,null,null,null,null,null,null,"",null,null,""]
[null,null,null,null,null,null,null,"",null,null,""]
[null,null,null,null,null,null,null,"",null,null,""]
[null,null,null,null,null,null,null,"",null,null,""]
[null,null,null,null,null,null,null,"",null,null,""]
[null,null,null,null,null,null,null,"",null,null,""]
[null,null,null,null,null,null,null,"",null,null,""]
[null,null,null,null,null,null,null,"",null,null,""]
[null,null,null,null,null,null,null,"",null,null,""]
[null,null,null,null,null,null,null,"",null,null,""]
[null,null,null,null,null,null,null,"",null,null,""]
[null,null,null,null,null,null,null,"",null,null,""]
[null,null,null,null,null,null,null,"",null,null,""]
[null,null,null,null,null,null,null,"",null,null,""]
[null,null,null,null,null,null,null,"",null,null,""]
[null,null,null,null,null,null,null,"",null,null,""]
[null,null,null,null,null,null,null,"",null,null,""]
[null,null,null,null,null,null,null,"",null,null,""]
[null,null,null,null,null,null,null,"",null,null,""]
[null,null,null,null,null,null,null,"",null,null,""]
[null,null,null,null,null,null,null,"",null,null,""]
[null,null,null,null,null,null,null,"",null,null,""]
[null,null,null,null,null,null,null,"",null,null,""]
[null,null,null,null,null,null,null,"",null,null,""]
[null,null,null,null,null,null,null,"",null,null,""]
[null,null,null,null,null,null,null,"",null,null,""]
[null,null,null,null,null,null,null,"",null,null,""]
[null,null,null,null,null,null,null,"",null,null,""]
[null,null,null,null,null,null,null,"",null,null,""]
[null,null,null,null,null,null,null,"",null,null,""]
[null,null,null,null,null,null,null,"",null,null,""]
[null,null,null,null,null,null,null,"",null,null,""]
[null,null,null,null,null,null,null,"",null,null,""]
[null,null,null,null,null,null,null,"",null,null,""]
[null,null,null,null,null,null,null,"",null,null,""]
[null,null,null,null,null,null,null,"",null,null,""]
[null,null,null,null,null,null,null,"",null,null,""]
[null,null,null,null,null,null,null,"",null,null,""]
[null,null,null,null,null,null,null,"",null,null,""]
[null,null,null,null,null,null,null,"",null,null,""]
[null,null,null,null,null,null,null,"",null,null,""]
[null,null,null,null,null,null,null,"",null,null,""]
[null,null,null,null,null,null,null,"",null,null,""]
[null,null,null,null,null,null,null,"",null,null,""]
[null,null,null,null,null,null,null,"",null,null,""]
[null,null,null,null,null,null,null,"",null,null,""]
[null,null,null,null,null,null,null,"",null,null,""]
[null,null,null,null,null,null,null,{"$f":"UPPER(LEFT(F718))&MID($F718,2,_xlfn.AGGREGATE(14,6,ROW(INDIRECT(\"1:35\"))/(MID($F718&\" \",ROW(INDIRECT(\"1:35\")),1)=\" \"),1)-1)","v":""},null,null,{"$f":"H718","v":""}]
[null,null,null,null,null,null,null,"",null,null,""]
[null,null,null,null,null,null,null,"",null,null,""]
[null,null,null,null,null,null,null,"",null,null,""]
[null,null,null,null,null,null,null,"",null,null,""]
[null,null,null,null,null,null,null,"",null,null,""]
[null,null,null,null,null,null,null,"",null,null,""]
[null,null,null,null,null,null,null,"",null,null,""]
[null,null,null,null,null,null,null,"",null,null,""]
[null,null,null,null,null,null,null,"",null,null,""]
[null,null,null,null,null,null,null,"",null,null,""]
[null,null,null,null,null,null,null,"",null,null,""]
[null,null,null,null,null,null,null,"",null,null,""]
[null,null,null,null,null,null,null,"",null,null,""]
[null,null,null,null,null,null,null,"",null,null,""]
[null,null,null,null,null,null,null,"",null,null,""]
[null,null,null,null,null,null,null,"",null,null,""]
[null,null,null,null,null,null,null,"",null,null,""]
[null,null,null,null,null,null,null,"",null,null,""]
[null,null,null,null,null,null,null,"",null,null,""]
[null,null,null,null,null,null,null,"",null,null,""]
[null,null,null,null,null,null,null,"",null,null,""]
[null,null,null,null,null,null,null,"",null,null,""]
[null,null,null,null,null,null,null,"",null,null,""]
[null,null,null,null,null,null,null,"",null,null,""]
[null,null,null,null,null,null,null,"",null,null,""]
[null,null,null,null,null,null,null,"",null,null,""]
[null,null,null,null,null,null,null,"",null,null,""]
[null,null,null,null,null,null,null,"",null,null,""]
[null,null,null,null,null,null,null,"",null,null,""]
[null,null,null,null,null,null,null,"",null,null,""]
[null,null,null,null,null,null,null,"",null,null,""]
[null,null,null,null,null,null,null,"",null,null,""]
[null,null,null,null,null,null,null,"",null,null,""]
[null,null,null,null,null,null,null,"",null,null,""]
[null,null,null,null,null,null,null,"",null,null,""]
[null,null,null,null,null,null,null,"",null,null,""]
[null,null,null,null,null,null,null,"",null,null,""]
[null,null,null,null,null,null,null,"",null,null,""]
[null,null,null,null,null,null,null,"",null,null,""]
[null,null,null,null,null,null,null,"",null,null,""]
[null,null,null,null,null,null,null,"",null,null,""]
[null,null,null,null,null,null,null,"",null,null,""]
[null,null,null,null,null,null,null,"",null,null,""]
[null,null,null,null,null,null,null,"",null,null,""]
[null,null,null,null,null,null,null,"",null,null,""]
[null,null,null,null,null,null,null,"",null,null,""]
[null,null,null,null,null,null,null,""]
[null,null,null,null,null,null,null,""]
[null,null,null,null,null,null,null,""]
[null,null,null,null,null,null,null,""]
[null,null,null,null,null,null,null,""]
[null,null,null,null,null,null,null,""]
[null,null,null,null,null,null,null,""]
[null,null,null,null,null,null,null,""]
[null,null,null,null,null,null,null,""]
[null,null,null,null,null,null,null,""]
[null,null,null,null,null,null,null,""]
[null,null,null,null,null,null,null,""]
[null,null,null,null,null,null,null,""]
[null,null,null,null,null,null,null,""]
[null,null,null,null,null,null,null,""]
[null,null,null,null,null,null,null,""]
[null,null,null,null,null,null,null,""]
[null,null,null,null,null,null,null,{"$f":"UPPER(LEFT(F782))&MID($F782,2,_xlfn.AGGREGATE(14,6,ROW(INDIRECT(\"1:35\"))/(MID($F782&\" \",ROW(INDIRECT(\"1:35\")),1)=\" \"),1)-1)","v":""}]
[null,null,null,null,null,null,null,""]
[null,null,null,null,null,null,null,""]
[null,null,null,null,null,null,null,""]
[null,null,null,null,null,null,null,""]
[null,null,null,null,null,null,null,""]
[null,null,null,null,null,null,null,""]
[null,null,null,null,null,null,null,""]
[null,null,null,null,null,null,null,""]
[null,null,null,null,null,null,null,""]
[null,null,null,null,null,null,null,""]
[null,null,null,null,null,null,null,""]
[null,null,null,null,null,null,null,""]
[null,null,null,null,null,null,null,""]
[null,null,null,null,null,null,null,""]
[null,null,null,null,null,null,null,""]
[null,null,null,null,null,null,null,""]
[null,null,null,null,null,null,null,""]
[null,null,null,null,null,null,null,""]
[null,null,null,null,null,null,null,""]
[null,null,null,null,null,null,null,""]
[null,null,null,null,null,null,null,""]
[null,null,null,null,null,null,null,""]
[null,null,null,null,null,null,null,""]
[null,null,null,null,null,null,null,""]
[null,null,null,null,null,null,null,""]
[null,null,null,null,null,null,null,""]
[null,null,null,null,null,null,null,""]
[null,null,null,null,null,null,null,""]
[null,null,null,null,null,null,null,""]
[null,null,null,null,null,null,null,""]
[null,null,null,null,null,null,null,""]
[null,null,null,null,null,null,null,""]
[null,null,null,null,null,null,null,""]
[null,null,null,null,null,null,null,""]
[null,null,null,null,null,null,null,""]
[null,null,null,null,null,null,null,""]
[null,null,null,null,null,null,null,""]
[null,null,null,null,null,null,null,""]
[null,null,null,null,null,null,null,""]
[null,null,null,null,null,null,null,""]
[null,null,null,null,null,null,null,""]
[null,null,null,null,null,null,null,""]
[null,null,null,null,null,null,null,""]
[null,null,null,null,null,null,null,""]
[null,null,null,null,null,null,null,""]
[null,null,null,null,null,null,null,""]
[null,null,null,null,null,null,null,""]
[null,null,null,null,null,null,null,""]
[null,null,null,null,null,null,null,""]
[null,null,null,null,null,null,null,""]
[null,null,null,null,null,null,null,""]
[null,null,null,null,null,null,null,""]
[null,null,null,null,null,null,null,""]
[null,null,null,null,null,null,null,""]
[null,null,null,null,null,null,null,""]
[null,null,null,null,null,null,null,""]
[null,null,null,null,null,null,null,""]
[null,null,null,null,null,null,null,""]
[null,null,null,null,null,null,null,""]
[null,null,null,null,null,null,null,""]
[null,null,null,null,null,null,null,""]
[null,null,null,null,null,null,null,""]
[null,null,null,null,null,null,null,""]
[null,null,null,null,null,null,null,{"$f":"UPPER(LEFT(F846))&MID($F846,2,_xlfn.AGGREGATE(14,6,ROW(INDIRECT(\"1:35\"))/(MID($F846&\" \",ROW(INDIRECT(\"1:35\")),1)=\" \"),1)-1)","v":""}]
[null,null,null,null,null,null,null,""]
[null,null,null,null,null,null,null,""]
[null,null,null,null,null,null,null,""]
[null,null,null,null,null,null,null,""]
[null,null,null,null,null,null,null,""]
[null,null,null,null,null,null,null,""]
[null,null,null,null,null,null,null,""]
[null,null,null,null,null,null,null,""]
[null,null,null,null,null,null,null,""]
[null,null,null,null,null,null,null,""]
[null,null,null,null,null,null,null,""]
[null,null,null,null,null,null,null,""]
[null,null,null,null,null,null,null,""]
[null,null,null,null,null,null,null,""]
[null,null,null,null,null,null,null,""]
[null,null,null,null,null,null,null,""]
[null,null,null,null,null,null,null,""]
[null,null,null,null,null,null,null,""]
[null,null,null,null,null,null,null,""]
[null,null,null,null,null,null,null,""]
[null,null,null,null,null,null,null,""]
[null,null,null,null,null,null,null,""]
[null,null,null,null,null,null,null,""]
[null,null,null,null,null,null,null,""]
[null,null,null,null,null,null,null,""]
[null,null,null,null,null,null,null,""]
[null,null,null,null,null,null,null,""]
[null,null,null,null,null,null,null,""]
[null,null,null,null,null,null,null,""]
[null,null,null,null,null,null,null,""]
[null,null,null,null,null,null,null,""]
[null,null,null,null,null,null,null,""]
[null,null,null,null,null,null,null,""]
[null,null,null,null,null,null,null,""]
[null,null,null,null,null,null,null,""]
[null,null,null,null,null,null,null,""]
[null,null,null,null,null,null,null,""]
[null,null,null,null,null,null,null,""]
[null,null,null,null,null,null,null,""]
[null,null,null,null,null,null,null,""]
[null,null,null,null,null,null,null,""]
[null,null,null,null,null,null,null,""]
[null,null,null,null,null,null,null,""]
[null,null,null,null,null,null,null,""]
[null,null,null,null,null,null,null,""]
[null,null,null,null,null,null,null,""]
[null,null,null,null,null,null,null,""]
[null,null,null,null,null,null,null,""]
[null,null,null,null,null,null,null,""]
[null,null,null,null,null,null,null,""]
[null,null,null,null,null,null,null,""]
[null,null,null,null,null,null,null,""]
[null,null,null,null,null,null,null,""]
[null,null,null,null,null,null,null,""]
[null,null,null,null,null,null,null,""]
[null,null,null,null,null,null,null,""]
[null,null,null,null,null,null,null,""]
[null,null,null,null,null,null,null,""]
[null,null,null,null,null,null,null,""]
[null,null,null,null,null,null,null,""]
[null,null,null,null,null,null,null,""]
[null,null,null,null,null,null,null,""]

{"sheet":"Лист2","index":1,"n_rows":0,"n_cols":0,"rows_kept":0,"cut":false,"hidden":false,"merged":[]}

{"sheet":"Лист3","index":2,"n_rows":0,"n_cols":0,"rows_kept":0,"cut":false,"hidden":false,"merged":[]}